bitfinex-derivatives/quotes_BTCF0:USTF0_20250417
["timestamp","ask_amount","ask_price","bid_price","bid_amount"]
[1744904937207,0.18427964,84646.0,84645.0,0.1810617]
[1744904939006,0.18427964,84646.0,84645.0,0.1489617]
[1744904939313,0.18427964,84646.0,84644.0,0.08236]
[1744904939314,0.1181617,84645.0,84644.0,0.08236]
[1744904939814,0.1830617,84645.0,84644.0,0.08236]
[1744904940310,0.1940617,84645.0,84644.0,0.08236]
[1744904941712,0.1940617,84645.0,84644.0,0.2005231]
[1744904942009,0.0590879,84635.0,84633.0,0.08224]
[1744904942207,0.0947,84634.0,84633.0,0.2004178]
[1744904942408,0.212877,84634.0,84633.0,0.2004178]
[1744904943117,0.212877,84634.0,84633.0,0.08224]
[1744904943118,0.223877,84634.0,84633.0,0.08224]
[1744904945916,0.118184,84629.0,84628.0,0.00017722]
[1744904946217,0.129184,84629.0,84628.0,0.00017722]
[1744904946420,0.193684,84629.0,84628.0,0.00017722]
[1744904948216,0.1182022,84616.0,84612.0,0.26091532]
[1744904948409,0.4890022,84616.0,84612.0,0.26091532]
[1744904948608,0.5805022,84616.0,84612.0,0.26091532]
[1744904949219,0.5815022,84616.0,84612.0,0.26091532]
[1744904949418,0.5815022,84616.0,84612.0,0.08224]
[1744904949915,0.5815022,84616.0,84607.0,0.02082856]
[1744904950221,0.1182134,84608.0,84607.0,0.02082856]
[1744904950420,0.1282134,84608.0,84607.0,0.02082856]
[1744904951215,0.1924134,84608.0,84607.0,0.02082856]
[1744904957014,0.1182287,84597.0,84596.0,0.08228]
[1744904957312,0.1282287,84597.0,84596.0,0.09403812]
[1744904957717,0.1591287,84597.0,84596.0,0.09403812]
[1744904958222,0.1601287,84597.0,84596.0,0.09803812]
[1744904958424,0.1932287,84597.0,84596.0,0.09803812]
[1744904958613,0.1932287,84597.0,84596.0,0.09503812]
[1744904959210,0.1932287,84597.0,84596.0,0.01175812]
[1744904959419,0.1182343,84593.0,84592.0,0.1485357]
[1744904959613,0.1182343,84593.0,84592.0,0.15754685]
[1744904959812,0.1513343,84593.0,84592.0,0.15754685]
[1744904960019,0.1513343,84593.0,84592.0,0.03931115]
[1744904960219,0.1523343,84593.0,84592.0,0.15754685]
[1744904960722,0.1524143,84593.0,84592.0,0.18834685]
[1744904961822,0.1524143,84593.0,84592.0,0.07011115]
[1744904962014,0.1524143,84593.0,84592.0,0.0816547]
[1744904963022,0.1524143,84593.0,84592.0,0.1998904]
[1744904963726,0.1193143,84593.0,84592.0,0.1387904]
[1744904965625,0.1192343,84593.0,84592.0,0.1387904]
[1744904965830,0.001,84593.0,84592.0,0.1387904]
[1744904966020,0.1193143,84593.0,84592.0,0.1387904]
[1744904966221,0.1182343,84593.0,84592.0,0.1387904]
[1744904966437,0.1183143,84593.0,84592.0,0.1387904]
[1744904968417,0.1183143,84593.0,84592.0,0.1407904]
[1744904968824,0.1183143,84593.0,84592.0,0.1417904]
[1744904969324,0.1183143,84593.0,84592.0,0.1397904]
[1744904969631,0.1183143,84593.0,84592.0,0.1417904]
[1744904970134,0.1193143,84593.0,84592.0,0.0235547]
[1744904970733,0.1193143,84593.0,84592.0,0.1417904]
[1744904971032,0.1193143,84593.0,84592.0,0.1407904]
[1744904971225,0.1193143,84593.0,84592.0,0.1417904]
[1744904971425,0.1193143,84593.0,84592.0,0.1397904]
[1744904971827,0.1193143,84593.0,84592.0,0.1387904]
[1744904974128,0.1183143,84593.0,84592.0,0.1387904]
[1744904974437,8e-05,84593.0,84592.0,0.1387904]
[1744904975226,0.00108,84593.0,84592.0,0.1387904]
[1744904975535,0.1193143,84593.0,84592.0,0.1387904]
[1744904975738,0.00108,84593.0,84592.0,0.1387904]
[1744904975934,0.1193143,84593.0,84592.0,0.1387904]
[1744904976129,0.1182343,84593.0,84592.0,0.1387904]
[1744904976330,0.1182301,84597.0,84596.0,0.059115]
[1744904977423,0.1183101,84597.0,84596.0,0.059115]
[1744904979143,0.1193101,84597.0,84596.0,0.059115]
[1744904979642,0.1193101,84597.0,84596.0,0.153615]
[1744904981945,0.1193101,84597.0,84596.0,0.0318]
[1744904982239,0.1829101,84597.0,84596.0,0.0318]
[1744904982630,0.1521301,84597.0,84596.0,0.0318]
[1744904982830,0.1522101,84597.0,84596.0,0.0318]
[1744904983640,0.1522101,84597.0,84596.0,0.1500301]
[1744904983938,0.1193101,84597.0,84596.0,0.1500301]
[1744904984138,0.1498301,84597.0,84596.0,0.1809301]
[1744904984340,0.1499101,84597.0,84596.0,0.1809301]
[1744904984539,0.1193101,84597.0,84596.0,0.2122301]
[1744904984839,0.1192301,84597.0,84596.0,0.2122301]
[1744904985435,0.1193101,84597.0,84596.0,0.2122301]
[1744904987742,0.1498101,84597.0,84596.0,0.2122301]
[1744904988433,0.1498101,84597.0,84596.0,0.094]
[1744904988644,0.1498101,84597.0,84596.0,0.0627]
[1744904988839,0.1930101,84597.0,84596.0,0.0627]
[1744904989144,0.1930101,84597.0,84596.0,0.1809301]
[1744904990042,0.1930101,84597.0,84596.0,0.0627]
[1744904991141,0.1930101,84597.0,84596.0,0.1809301]
[1744904991945,0.1293101,84597.0,84596.0,0.1809301]
[1744904992942,0.1193087,84597.0,84596.0,0.1809301]
[1744904993246,0.1183087,84597.0,84596.0,0.1809301]
[1744904993637,0.1183087,84597.0,84596.0,0.1819301]
[1744904994142,0.11981452,84603.0,84602.0,0.1182217]
[1744904994542,0.11981452,84603.0,84602.0,0.2143217]
[1744904995046,8e-05,84603.0,84602.0,0.2143217]
[1744904995836,0.11839472,84605.0,84604.0,0.1182189]
[1744904996329,0.11839472,84605.0,84604.0,0.1814189]
[1744904997540,0.00017722,84605.0,84604.0,0.1814189]
[1744904999047,0.00017722,84605.0,84604.0,0.5422189]
[1744905000856,0.00010801,84611.0,84610.0,0.1182106]
[1744905001345,0.1181972,84620.0,84619.0,0.1772955]
[1744905001753,0.1181972,84620.0,84617.0,0.0590999]
[1744905001754,0.118198,84619.0,84618.0,0.061]
[1744905001941,0.1182008,84617.0,84616.0,0.0822]
[1744905002248,0.1192008,84617.0,84616.0,0.0822]
[1744905002451,0.1918008,84617.0,84616.0,0.0822]
[1744905002650,0.5526008,84617.0,84616.0,0.0822]
[1744905012456,0.1182092,84611.0,84610.0,0.00017722]
[1744905012659,0.1282092,84611.0,84610.0,0.00017722]
[1744905012956,0.2223092,84611.0,84610.0,0.00017722]
[1744905014159,0.2233092,84611.0,84610.0,0.00017722]
[1744905015256,0.2223092,84611.0,84610.0,0.00017722]
[1744905016042,0.2233092,84611.0,84610.0,0.00017722]
[1744905016244,0.2233892,84611.0,84610.0,0.00017722]
[1744905018054,0.1598892,84611.0,84610.0,0.11838782]
[1744905018360,0.1588092,84611.0,84610.0,0.00017722]
[1744905018560,0.1588892,84611.0,84610.0,0.00017722]
[1744905018965,0.1912892,84611.0,84610.0,0.00017722]
[1744905021250,0.1922892,84611.0,84610.0,0.00017722]
[1744905022167,0.1912892,84611.0,84610.0,0.00017722]
[1744905026067,0.1922892,84611.0,84610.0,0.00017722]
[1744905029869,0.1292892,84611.0,84610.0,0.00017722]
[1744905030168,0.1282892,84611.0,84610.0,0.00017722]
[1744905030367,0.1282892,84611.0,84610.0,0.11838782]
[1744905031168,0.1282092,84611.0,84610.0,0.11838782]
[1744905031371,0.1282092,84611.0,84610.0,0.18148782]
[1744905031873,0.1182035,84616.0,84615.0,0.1182022]
[1744905032173,0.1773062,84616.0,84615.0,0.1182022]
[1744905032367,0.1773862,84616.0,84615.0,0.2117022]
[1744905033073,8e-05,84616.0,84615.0,0.2117022]
[1744905034264,0.11981452,84619.0,84618.0,0.1181994]
[1744905034469,0.11981452,84619.0,84618.0,0.4789994]
[1744905034868,0.11989452,84619.0,84618.0,0.4789994]
[1744905035070,0.11989452,84619.0,84618.0,0.4799994]
[1744905035666,0.11989452,84619.0,84618.0,0.4829994]
[1744905036178,0.11989452,84619.0,84618.0,0.4819994]
[1744905036679,0.23809252,84619.0,84618.0,0.4819994]
[1744905037081,0.11989452,84619.0,84618.0,0.4829994]
[1744905037678,0.11989452,84619.0,84618.0,0.4819994]
[1744905038182,8e-05,84619.0,84618.0,0.4799994]
[1744905038386,0.118278,84619.0,84618.0,0.4819994]
[1744905038579,8e-05,84619.0,84618.0,0.4819994]
[1744905038787,0.118278,84619.0,84618.0,0.4819994]
[1744905039282,0.118278,84619.0,84618.0,0.4799994]
[1744905039472,0.118278,84619.0,84618.0,0.4819994]
[1744905039669,8e-05,84619.0,84618.0,0.5448994]
[1744905040783,8e-05,84619.0,84618.0,0.5418994]
[1744905040982,8e-05,84619.0,84618.0,0.5428994]
[1744905041572,8e-05,84619.0,84618.0,0.5438994]
[1744905041773,8e-05,84619.0,84618.0,0.5448994]
[1744905043185,0.11981452,84643.0,84642.0,0.1181659]
[1744905043385,0.15047815,84650.0,84649.0,0.1181561]
[1744905043571,0.15047815,84650.0,84649.0,0.4789561]
[1744905043882,0.15021242,84650.0,84649.0,0.4789561]
[1744905044185,0.15021242,84650.0,84649.0,0.4799561]
[1744905044388,0.15021242,84650.0,84649.0,0.5450561]
[1744905044682,0.15021242,84650.0,84649.0,0.55394913]
[1744905044874,0.17956893,84658.0,84657.0,0.1181449]
[1744905045074,0.17956893,84658.0,84657.0,0.5619049]
[1744905045480,0.17964893,84658.0,84657.0,0.5619049]
[1744905045683,0.17956893,84658.0,84657.0,0.6270049]
[1744905045879,0.17964893,84658.0,84657.0,0.6270049]
[1744905046087,0.00025722,84658.0,84657.0,0.6270049]
[1744905046286,0.00025722,84658.0,84657.0,0.6260049]
[1744905046981,0.00025722,84658.0,84657.0,0.6250049]
[1744905047181,0.11940072,84658.0,84657.0,0.5110449]
[1744905047392,0.14940072,84658.0,84657.0,0.5929649]
[1744905047777,0.15040072,84658.0,84657.0,0.5929649]
[1744905049391,0.03225722,84658.0,84657.0,0.5929649]
[1744905050291,0.00225722,84658.0,84657.0,0.5929649]
[1744905050479,0.00010801,84669.0,84658.0,0.0590712]
[1744905050685,0.00010801,84669.0,84668.0,0.1181296]
[1744905051086,0.03238801,84669.0,84668.0,0.1181296]
[1744905051285,0.0322,84669.0,84668.0,0.1515296]
[1744905051497,0.06478,84669.0,84668.0,0.1820296]
[1744905051686,0.0657,84669.0,84668.0,0.1820296]
[1744905051892,0.1839082,84669.0,84668.0,0.1820296]
[1744905052092,0.00108,84669.0,84668.0,0.1820296]
[1744905052593,0.03208,84669.0,84668.0,0.1820296]
[1744905052796,0.06448,84669.0,84668.0,0.1820296]
[1744905053180,0.1826082,84669.0,84668.0,0.1810296]
[1744905054694,0.1826082,84669.0,84668.0,0.1505296]
[1744905055100,0.1826082,84669.0,84660.0,0.00017722]
[1744905055101,0.0590679,84664.0,84663.0,0.08192]
[1744905055395,0.0690679,84664.0,84663.0,0.08192]
[1744905055989,0.1561679,84664.0,84663.0,0.2000566]
[1744905056195,0.1561679,84664.0,84663.0,0.08192]
[1744905056403,0.1181394,84661.0,84660.0,0.00017722]
[1744905056588,0.1181533,84651.0,84650.0,0.08192]
[1744905056894,0.1181533,84651.0,84649.0,0.02073258]
[1744905056895,0.1181547,84650.0,84649.0,0.02073258]
[1744905057096,0.1181631,84644.0,84643.0,0.0590822]
[1744905057594,0.1181631,84644.0,84643.0,0.07077796]
[1744905058097,0.1826631,84644.0,84643.0,0.07077796]
[1744905058399,0.1926631,84644.0,84643.0,0.00881421]
[1744905058589,0.1181673,84641.0,84640.0,0.3608]
[1744905059199,0.1830673,84641.0,84640.0,0.3608]
[1744905059696,0.1830673,84641.0,84640.0,0.37278349]
[1744905060394,0.1830673,84641.0,84635.0,0.00017722]
[1744905060395,0.1181742,84636.0,84635.0,0.00017722]
[1744905060798,0.2132742,84636.0,84635.0,0.00017722]
[1744905061292,0.2142742,84636.0,84635.0,0.00017722]
[1744905061498,0.2242742,84636.0,84635.0,0.00017722]
[1744905064204,0.2242742,84636.0,84635.0,0.00896984]
[1744905066204,0.1051,84636.0,84635.0,0.12714544]
[1744905066501,0.236339,84643.0,84642.0,0.1181617]
[1744905066699,0.1181687,84641.0,84640.0,0.1181677]
[1744905066898,0.1181687,84641.0,84640.0,0.1496677]
[1744905067096,0.1805687,84641.0,84640.0,0.0315]
[1744905070007,0.1181687,84641.0,84640.0,0.5104687]
[1744905070195,0.1772411,84650.0,84649.0,0.1181533]
[1744905070397,0.2363209,84650.0,84649.0,0.1999933]
[1744905070591,0.00025722,84652.0,84649.0,1.94264]
[1744905070894,0.00014581,84658.0,84654.0,0.0590739]
[1744905071197,0.00014581,84658.0,84650.0,0.0327]
[1744905071198,0.059068,84664.0,84661.0,0.1772056]
[1744905071516,0.1181366,84663.0,84662.0,0.14764]
[1744905071710,0.1181366,84663.0,84662.0,0.2657766]
[1744905071895,0.1182166,84663.0,84662.0,0.2657766]
[1744905072206,0.1181366,84663.0,84662.0,0.1839366]
[1744905072406,0.1182166,84663.0,84662.0,0.2657766]
[1744905072705,0.1182166,84663.0,84662.0,0.14764]
[1744905072900,0.1182166,84663.0,84662.0,0.0331]
[1744905073103,0.1182166,84663.0,84659.0,0.08184]
[1744905073104,0.1181407,84660.0,84659.0,0.08184]
[1744905073909,0.1181435,84658.0,84657.0,0.0331]
[1744905074108,0.1181435,84658.0,84657.0,0.14804]
[1744905074604,0.1514435,84658.0,84657.0,0.14804]
[1744905075108,0.1514435,84658.0,84657.0,0.2661849]
[1744905077109,0.1181435,84658.0,84657.0,0.2661849]
[1744905079309,0.03058,84663.0,84662.0,0.118138]
[1744905079310,8e-05,84663.0,84662.0,0.118138]
[1744905079605,0.1181282,84669.0,84668.0,0.177193]
[1744905079813,0.1281282,84669.0,84668.0,0.177193]
[1744905080004,0.11823621,84669.0,84668.0,0.177193]
[1744905080200,0.1181282,84669.0,84668.0,0.177193]
[1744905080508,0.1182082,84669.0,84668.0,0.241193]
[1744905080707,0.1182082,84669.0,84668.0,0.323033]
[1744905081203,8e-05,84669.0,84668.0,0.323033]
[1744905082008,0.1182082,84669.0,84668.0,0.323033]
[1744905082311,0.1181282,84669.0,84668.0,0.323033]
[1744905082499,0.1182082,84669.0,84668.0,0.323033]
[1744905086315,8e-05,84669.0,84668.0,0.323033]
[1744905086815,0.1182082,84669.0,84668.0,0.323033]
[1744905088305,8e-05,84669.0,84668.0,0.323033]
[1744905089015,0.00014581,84680.0,84668.0,0.14584]
[1744905089203,0.0590543,84684.0,84682.0,0.1181101]
[1744905089404,0.1224111,84683.0,84682.0,0.1181101]
[1744905089810,0.1542911,84683.0,84682.0,0.1839101]
[1744905090313,0.1542911,84683.0,84682.0,0.0658]
[1744905090515,0.1842911,84683.0,84682.0,0.033]
[1744905090714,0.1181101,84682.0,84681.0,0.0818]
[1744905090919,0.1600101,84682.0,84681.0,0.0818]
[1744905091119,0.1910101,84682.0,84681.0,0.0818]
[1744905091320,0.2228101,84682.0,84681.0,0.0818]
[1744905091708,0.1181184,84676.0,84675.0,0.1511187]
[1744905091922,0.4789184,84676.0,84675.0,0.1511187]
[1744905092411,0.1822184,84676.0,84675.0,0.16005394]
[1744905093217,0.5430184,84676.0,84675.0,0.19245394]
[1744905093913,0.1822184,84676.0,84675.0,0.19245394]
[1744905094121,0.1496184,84676.0,84675.0,0.19245394]
[1744905094522,0.1181184,84676.0,84675.0,0.19245394]
[1744905095724,0.1181984,84676.0,84675.0,0.19245394]
[1744905096317,8e-05,84676.0,84675.0,0.19245394]
[1744905096514,0.00010801,84680.0,84679.0,0.1181142]
[1744905096711,0.11830694,84682.0,84681.0,0.1181115]
[1744905097218,0.1181101,84682.0,84681.0,0.1181115]
[1744905097406,0.1181901,84682.0,84681.0,0.1798115]
[1744905097818,0.1181101,84682.0,84681.0,0.1798115]
[1744905098023,0.1181901,84682.0,84681.0,0.1798115]
[1744905098720,0.1501901,84682.0,84681.0,0.1798115]
[1744905099422,0.1181901,84682.0,84681.0,0.1798115]
[1744905100118,0.1811901,84682.0,84681.0,0.1798115]
[1744905100822,0.1501901,84682.0,84681.0,0.1798115]
[1744905101210,0.03208,84682.0,84681.0,0.1798115]
[1744905102329,0.1501901,84682.0,84681.0,0.1798115]
[1744905102516,0.1815901,84682.0,84681.0,0.1798115]
[1744905102710,0.1815901,84682.0,84681.0,0.1488115]
[1744905103221,0.03208,84682.0,84681.0,0.1488115]
[1744905103412,8e-05,84682.0,84681.0,0.1807115]
[1744905103613,0.0312,84682.0,84681.0,0.1807115]
[1744905103821,0.1224096,84683.0,84682.0,0.1181101]
[1744905104025,0.1224096,84683.0,84682.0,0.1815101]
[1744905104419,0.1860896,84683.0,84682.0,0.1815101]
[1744905104923,0.1771685,84681.0,84680.0,0.1181118]
[1744905105121,0.1771685,84681.0,84680.0,0.1998318]
[1744905106026,0.1771685,84681.0,84680.0,0.2324318]
[1744905107527,0.00438,84683.0,84682.0,0.1181101]
[1744905107728,0.00438,84683.0,84682.0,0.1492101]
[1744905107729,0.0043,84683.0,84682.0,0.1492101]
[1744905107931,0.00438,84683.0,84682.0,0.19647047]
[1744905108120,0.1224887,84683.0,84682.0,0.19647047]
[1744905108314,0.1224887,84683.0,84682.0,0.1806101]
[1744905108513,0.1224887,84683.0,84682.0,0.19674908]
[1744905108722,0.1224087,84683.0,84682.0,0.19674908]
[1744905108930,0.1224887,84683.0,84682.0,0.19674908]
[1744905109332,0.00438,84683.0,84682.0,0.19674908]
[1744905109533,0.00438,84683.0,84682.0,0.19673283]
[1744905110131,0.1224887,84683.0,84682.0,0.19773283]
[1744905110330,0.1542887,84683.0,84682.0,0.19773283]
[1744905110719,0.03618,84683.0,84682.0,0.19773283]
[1744905111026,0.00438,84683.0,84682.0,0.19773283]
[1744905111531,0.1224887,84683.0,84682.0,0.19773283]
[1744905112231,0.1542887,84683.0,84682.0,0.19773283]
[1744905112430,0.00438,84683.0,84682.0,0.19773283]
[1744905112935,0.0043,84683.0,84682.0,0.19773283]
[1744905113133,0.00438,84683.0,84682.0,0.19773283]
[1744905113329,0.00028523,84691.0,84690.0,0.1180989]
[1744905113522,0.00028523,84691.0,84690.0,0.4788989]
[1744905113831,0.11835472,84691.0,84690.0,1.9788989]
[1744905114033,0.11835472,84691.0,84690.0,2.0740989]
[1744905114234,0.14855472,84691.0,84690.0,2.0740989]
[1744905114434,0.14855472,84691.0,84690.0,2.08984437]
[1744905115028,0.14855472,84691.0,84690.0,2.10189548]
[1744905115436,0.14855472,84691.0,84690.0,2.08615001]
[1744905116236,0.03045722,84691.0,84690.0,2.08615001]
[1744905116552,0.00025722,84691.0,84690.0,2.10196811]
[1744905116745,0.09292932,84700.0,84699.0,0.1180864]
[1744905117039,0.09292932,84700.0,84699.0,0.21561699]
[1744905117238,0.09292932,84700.0,84699.0,0.27941699]
[1744905117434,0.09300932,84700.0,84699.0,1.7636064]
[1744905118343,0.0315,84707.0,84703.0,0.1180808]
[1744905118837,0.1488703,84711.0,84710.0,0.118071]
[1744905119024,0.00010801,84713.0,84712.0,0.1180682]
[1744905119433,0.00010801,84713.0,84712.0,0.1504682]
[1744905119634,0.1180655,84714.0,84713.0,0.1180668]
[1744905119834,0.1180655,84714.0,84713.0,0.1997868]
[1744905120035,0.1180636,84716.0,84715.0,0.1770947]
[1744905120737,0.1180654,84714.0,84713.0,0.08172]
[1744905120928,0.1280654,84714.0,84713.0,0.1997868]
[1744905121131,0.1290654,84714.0,84713.0,0.1997868]
[1744905121329,0.1913654,84714.0,84713.0,0.1997868]
[1744905121928,0.1913654,84714.0,84713.0,0.08172]
[1744905121929,0.5521654,84714.0,84713.0,0.08172]
[1744905122125,0.1913654,84714.0,84713.0,0.1997868]
[1744905124734,0.1913654,84714.0,84713.0,0.2318868]
[1744905124933,0.1914454,84714.0,84713.0,0.2318868]
[1744905125440,0.17711,84710.0,84709.0,0.1180714]
[1744905125645,0.2461462,84710.0,84709.0,0.1180714]
[1744905126143,0.2471462,84710.0,84709.0,0.1180714]
[1744905128243,0.2471462,84710.0,84709.0,0.1488714]
[1744905128948,0.01108,84710.0,84709.0,0.1488714]
[1744905129155,0.0590335,84713.0,84712.0,0.1771009]
[1744905129640,0.0909335,84713.0,84712.0,0.1771009]
[1744905130447,0.0910135,84713.0,84712.0,0.1771009]
[1744905131845,0.0591135,84713.0,84712.0,0.1771009]
[1744905132240,0.0590335,84713.0,84712.0,0.1771009]
[1744905132440,0.0591135,84713.0,84712.0,0.1771009]
[1744905133535,0.1180738,84708.0,84707.0,0.00017711]
[1744905133748,0.1480738,84708.0,84707.0,0.00017711]
[1744905134235,0.1490738,84708.0,84707.0,0.00017711]
[1744905134436,0.1820738,84708.0,84707.0,0.00017711]
[1744905134637,0.1820738,84708.0,84707.0,0.11825231]
[1744905135450,0.1821538,84708.0,84707.0,0.11825231]
[1744905138549,0.2148538,84708.0,84707.0,0.11825231]
[1744905139355,0.1848538,84708.0,84707.0,0.11825231]
[1744905140947,0.1521538,84708.0,84707.0,0.11825231]
[1744905141149,0.1520738,84708.0,84707.0,0.11825231]
[1744905141353,0.1521538,84708.0,84707.0,0.11825231]
[1744905142353,0.00108,84708.0,84707.0,0.13404086]
[1744905142657,0.001,84708.0,84707.0,0.13404086]
[1744905142846,0.00108,84708.0,84707.0,0.13404086]
[1744905143260,0.1191538,84708.0,84707.0,0.13404086]
[1744905143754,0.00108,84708.0,84707.0,0.13404086]
[1744905143955,0.1191538,84708.0,84707.0,0.13404086]
[1744905144157,0.00108,84708.0,84707.0,0.13404086]
[1744905145552,0.00108,84708.0,84707.0,0.16504086]
[1744905145752,0.1191538,84708.0,84707.0,0.16504086]
[1744905147455,0.2145538,84708.0,84707.0,0.00017711]
[1744905147758,0.2245538,84708.0,84707.0,0.00017711]
[1744905147960,0.5853538,84708.0,84707.0,0.00017711]
[1744905148270,0.5853538,84708.0,84699.0,0.35511651]
[1744905148271,0.118085,84700.0,84699.0,0.29607381]
[1744905148564,0.508885,84700.0,84699.0,0.29607381]
[1744905148961,0.1180961,84692.0,84687.0,0.47176584]
[1744905149160,0.4998961,84692.0,84687.0,0.47176584]
[1744905149360,0.4998961,84692.0,84691.0,0.47327946]
[1744905149560,0.4998961,84692.0,84691.0,0.35518196]
[1744905149761,0.5651961,84692.0,84691.0,0.35518196]
[1744905151466,0.1180989,84690.0,84689.0,0.01166353]
[1744905151660,0.1181031,84687.0,84686.0,0.118104]
[1744905151868,0.1281031,84687.0,84686.0,0.118104]
[1744905152270,0.1291031,84687.0,84686.0,0.118104]
[1744905153072,0.1181059,84685.0,84684.0,0.08164]
[1744905153271,0.02,84685.0,84682.0,0.17962518]
[1744905153472,0.1819073,84684.0,84682.0,0.17962518]
[1744905153769,0.2119073,84684.0,84683.0,0.01198797]
[1744905153972,0.2119073,84684.0,84683.0,0.00017711]
[1744905154164,0.2129073,84684.0,84683.0,0.00017711]
[1744905154569,0.2129073,84684.0,84683.0,0.03197711]
[1744905155969,0.2129073,84684.0,84683.0,0.15008581]
[1744905156173,0.2129073,84684.0,84683.0,0.03197711]
[1744905156474,0.1822073,84684.0,84683.0,0.15008581]
[1744905156671,0.77237711,84700.0,84683.0,0.15008581]
[1744905156672,0.0045,84720.0,84683.0,0.74628492]
[1744905156871,0.177196,84708.0,84707.0,0.1180752]
[1744905157170,0.177196,84708.0,84707.0,1.6996752]
[1744905157171,0.178116,84708.0,84707.0,1.6996752]
[1744905157371,0.1180752,84707.0,84706.0,0.0312]
[1744905157573,0.1771539,84689.0,84688.0,0.1180955]
[1744905157772,0.1771539,84689.0,84688.0,0.2308955]
[1744905158165,0.1781539,84689.0,84688.0,0.2308955]
[1744905158969,0.1781539,84689.0,84688.0,0.2624955]
[1744905159274,0.1781539,84689.0,84688.0,0.1444]
[1744905159665,0.1781539,84689.0,84688.0,0.0628]
[1744905159866,0.1781539,84689.0,84688.0,0.1444]
[1744905161279,0.1781539,84689.0,84688.0,0.2625017]
[1744905161772,0.1781539,84689.0,84688.0,0.1444]
[1744905163178,0.1781539,84689.0,84688.0,0.2625017]
[1744905163977,0.1781539,84689.0,84688.0,0.1444]
[1744905164182,0.1781539,84689.0,84688.0,0.1128]
[1744905164384,0.5389539,84689.0,84688.0,0.1128]
[1744905164883,0.5389539,84689.0,84688.0,0.2309017]
[1744905165069,0.1781539,84689.0,84688.0,0.2309017]
[1744905171172,0.1781539,84689.0,84688.0,0.0312]
[1744905171376,0.1181073,84684.0,84683.0,0.00017711]
[1744905171582,0.1381073,84684.0,84683.0,0.00017711]
[1744905171770,0.1181184,84676.0,84675.0,0.00893524]
[1744905171974,0.1181198,84675.0,84674.0,0.17962518]
[1744905172280,0.2189198,84675.0,84674.0,0.17962518]
[1744905173183,0.2199198,84675.0,84674.0,0.17962518]
[1744905173384,0.2199198,84675.0,84674.0,0.1885877]
[1744905174188,0.6313198,84675.0,84674.0,0.1885877]
[1744905174371,1.124,84675.0,84651.0,0.17917384]
[1744905174578,0.1181491,84654.0,84653.0,0.1490494]
[1744905174772,0.1281491,84654.0,84653.0,0.1490505]
[1744905175286,0.1181519,84652.0,84651.0,0.17917384]
[1744905175490,0.1281519,84652.0,84651.0,0.29732714]
[1744905175685,0.1281519,84652.0,84651.0,0.17917384]
[1744905175885,0.1899519,84652.0,84651.0,0.32822714]
[1744905176086,0.1909519,84652.0,84651.0,0.32822714]
[1744905176386,0.1609519,84652.0,84651.0,0.32822714]
[1744905176603,0.1291519,84652.0,84651.0,0.32822714]
[1744905177174,0.1291519,84652.0,84651.0,0.36102714]
[1744905178190,0.1292319,84652.0,84651.0,0.36102714]
[1744905178579,0.1292319,84652.0,84651.0,0.36967602]
[1744905179583,0.1292319,84652.0,84651.0,0.19050218]
[1744905180882,0.1902319,84652.0,84651.0,0.19050218]
[1744905181181,0.1902319,84652.0,84651.0,0.00864888]
[1744905181381,0.1181575,84648.0,84647.0,0.0321]
[1744905181581,0.1281575,84648.0,84647.0,0.0321]
[1744905181777,0.5499575,84648.0,84647.0,0.0321]
[1744905182189,0.5509575,84648.0,84647.0,0.0321]
[1744905182994,0.1181631,84644.0,84643.0,0.09337816]
[1744905183190,0.1291631,84644.0,84643.0,0.04437816]
[1744905183494,0.1946631,84644.0,84643.0,0.04437816]
[1744905183691,0.1946631,84644.0,84643.0,0.03277711]
[1744905184995,0.1946631,84644.0,84643.0,0.04483692]
[1744905185288,0.1946631,84644.0,84643.0,0.03277711]
[1744905186983,0.1946631,84644.0,84643.0,0.04182794]
[1744905188191,0.1181659,84642.0,84641.0,0.00508025]
[1744905188388,0.1381659,84642.0,84641.0,0.01408676]
[1744905188694,0.2000659,84642.0,84641.0,0.01408676]
[1744905189198,0.2010659,84642.0,84641.0,0.01408676]
[1744905191901,0.1181756,84635.0,84634.0,0.0311]
[1744905192097,0.4999756,84635.0,84634.0,0.0311]
[1744905192400,0.0590906,84631.0,84625.0,0.0331]
[1744905192699,0.4789882,84626.0,84625.0,0.0331]
[1744905193085,0.4789882,84626.0,84620.0,0.0816]
[1744905193086,0.1181952,84621.0,84620.0,0.0816]
[1744905193290,0.1281952,84621.0,84620.0,0.0816]
[1744905193485,0.1182022,84616.0,84614.0,0.1182046]
[1744905193691,0.1182022,84616.0,84615.0,0.01706884]
[1744905193898,0.1810022,84616.0,84615.0,0.00508181]
[1744905194104,0.1820022,84616.0,84615.0,0.00508181]
[1744905194598,0.1182064,84613.0,84612.0,0.00017722]
[1744905194802,0.1182064,84613.0,84600.0,0.1]
[1744905194803,0.1182231,84601.0,84600.0,0.1]
[1744905195001,0.1282231,84601.0,84600.0,0.10903441]
[1744905195190,0.1292231,84601.0,84600.0,0.10888861]
[1744905195393,0.1182273,84598.0,84597.0,0.29829864]
[1744905195594,0.1182385,84590.0,84589.0,0.40321572]
[1744905195805,0.1182385,84590.0,84589.0,0.04803376]
[1744905196108,0.1292385,84590.0,84589.0,0.03638337]
[1744905196298,0.1292385,84590.0,84589.0,0.03646337]
[1744905196501,0.1900385,84590.0,84589.0,0.03638337]
[1744905196697,0.1900385,84590.0,84589.0,0.00516337]
[1744905197094,0.1900385,84590.0,84589.0,0.00508337]
[1744905197304,0.1182441,84586.0,84585.0,0.29803526]
[1744905197704,0.1282441,84586.0,84585.0,0.29803526]
[1744905197899,0.1282441,84586.0,84585.0,0.29811526]
[1744905198106,0.1292441,84586.0,84585.0,0.30696632]
[1744905200205,0.1292441,84586.0,84585.0,0.00893106]
[1744905201107,0.1182511,84581.0,84580.0,0.000108]
[1744905201300,0.1182735,84565.0,84564.0,0.031]
[1744905201502,0.1182735,84565.0,84564.0,0.07486897]
[1744905201809,0.1182735,84565.0,84564.0,0.19314387]
[1744905202007,0.1182735,84565.0,84564.0,0.19322387]
[1744905202310,0.1499735,84565.0,84564.0,0.01164897]
[1744905202610,0.1821735,84565.0,84564.0,0.01156897]
[1744905202809,0.1821735,84565.0,84564.0,0.1182749]
[1744905203112,0.1821735,84565.0,84564.0,0.1506549]
[1744905203613,0.1821735,84565.0,84564.0,0.03238]
[1744905204510,0.1821735,84565.0,84564.0,0.06358]
[1744905204812,0.1821735,84565.0,84564.0,0.07242075]
[1744905205816,0.1499735,84565.0,84564.0,0.07242075]
[1744905206008,0.05827516,84566.0,84564.0,0.07242075]
[1744905206209,0.1192749,84565.0,84564.0,0.19069565]
[1744905207508,0.001,84565.0,84564.0,0.19069565]
[1744905208015,0.1192735,84565.0,84564.0,0.19069565]
[1744905208909,0.1192735,84565.0,84564.0,0.19169565]
[1744905209924,0.0591247,84583.0,84572.0,0.1182637]
[1744905210217,0.00117733,84573.0,84572.0,0.1182637]